bitfinex/quotes_ETHUSD_20250706
["timestamp","ask_amount","ask_price","bid_price","bid_amount"]
[1751773940561,1e-08,2515.7,2515.6,4.17359478]
[1751773941359,1e-08,2515.7,2515.6,0.1984]
[1751773941360,0.70039852,2515.7,2515.6,0.1984]
[1751773942262,0.70039852,2515.7,2515.6,4.17359478]
[1751773942423,0.70039852,2515.7,2515.6,0.1984]
[1751773942923,0.70039852,2515.7,2515.6,4.17359478]
[1751773943993,0.70039852,2515.7,2515.6,0.1984]
[1751773944992,0.70039852,2515.7,2515.6,4.17359478]
[1751773946376,0.70039852,2515.7,2515.5,3.97629371]
[1751773947680,0.70039852,2515.7,2515.5,0.001]
[1751773948176,0.70039852,2515.7,2515.5,3.97626312]
[1751773951452,0.70039852,2515.7,2515.6,3.97519478]
[1751773953651,0.56939852,2515.7,2515.6,3.97519478]
[1751773954053,1e-08,2515.7,2515.6,3.97519478]
[1751773956872,1e-08,2515.7,2515.6,4.93649478]
[1751773967702,1e-08,2515.7,2515.6,4.17359478]
[1751773985320,1e-08,2515.7,2515.6,4.21334672]
[1751773985520,1e-08,2515.7,2515.6,5.02104672]
[1751773985696,1e-08,2515.7,2515.6,6.91198405]
[1751773987320,1e-08,2515.7,2515.6,14.89098405]
[1751773987525,1e-08,2515.7,2515.6,30.37258693]
[1751773989233,1e-08,2515.7,2515.6,24.85123211]
[1751773995233,1e-08,2515.7,2515.6,14.85123211]
[1751774015142,1e-08,2515.7,2515.6,30.92258693]
[1751774015332,1e-08,2515.7,2515.6,32.85358693]
[1751774016542,1e-08,2515.7,2515.6,37.60358693]
[1751774017326,1e-08,2515.9,2515.8,4.52487876]
[1751774017526,1e-08,2515.9,2515.8,22.73767484]
[1751774017830,1e-08,2515.9,2515.8,22.89632606]
[1751774020461,0.02,2516.1,2516.0,10.32071761]
[1751774020634,0.02,2516.1,2516.0,21.32827857]
[1751774020957,0.02,2516.1,2516.0,21.52667857]
[1751774030662,0.02,2516.1,2516.0,7.20252375]
[1751774030964,0.02,2516.1,2516.0,17.11052375]
[1751774037468,0.02,2516.1,2516.0,7.20252375]
[1751774037666,0.02,2516.1,2516.0,14.08096279]
[1751774057968,0.02,2516.2,2516.1,4.77050483]
[1751774060769,0.02,2516.2,2516.1,4.81024887]
[1751774062089,0.02,2516.6,2516.3,3.97408894]
[1751774062269,0.02,2516.6,2516.3,11.99082982]
[1751774062470,0.02,2516.6,2516.3,12.14948894]
[1751774063584,0.02,2516.6,2516.3,14.79104544]
[1751774066991,0.02,2516.6,2516.5,3.97377309]
[1751774067207,0.02,2516.6,2516.5,11.99051082]
[1751774067363,0.02,2516.6,2516.5,11.95077309]
[1751774067563,0.02,2516.6,2516.5,15.03495084]
[1751774072486,0.1984,2517.2,2516.5,15.03495084]
[1751774072487,0.0431287,2517.4,2517.1,3.97282587]
[1751774072672,0.0431287,2517.4,2517.3,3.97251022]
[1751774073882,0.0431287,2517.4,2517.3,4.01223532]
[1751774076902,0.0431287,2517.4,2517.3,3.97251022]
[1751774077096,0.0431287,2517.4,2517.3,4.01223532]
[1751774077298,0.0431287,2517.4,2517.3,6.27407551]
[1751774080119,0.02,2517.5,2517.4,3.97235242]
[1751774080313,1e-08,2517.5,2517.4,23.32775242]
[1751774081611,1e-08,2517.5,2517.4,25.25775242]
[1751774081814,1e-08,2517.5,2517.4,29.1066449]
[1751774082612,1e-08,2517.5,2517.4,29.3050449]
[1751774083882,1e-08,2517.5,2517.4,19.3920449]
[1751774084085,1e-08,2517.5,2517.4,29.3040449]
[1751774084614,1e-08,2517.5,2517.4,34.0540449]
[1751774087411,1e-08,2517.5,2517.4,24.1420449]
[1751774087710,1e-08,2517.5,2517.4,34.0520449]
[1751774091087,1e-08,2517.5,2517.4,34.0530449]
[1751774091585,1e-08,2517.5,2517.4,34.0540449]
[1751774094825,1e-08,2517.5,2517.4,34.0550449]
[1751774095479,1e-08,2517.5,2517.4,23.3206449]
[1751774095897,1e-08,2517.5,2517.4,33.2326449]
[1751774096920,1e-08,2517.5,2517.4,12.7706449]
[1751774097091,1e-08,2517.5,2517.4,22.6836449]
[1751774097915,1e-08,2517.5,2517.4,12.7706449]
[1751774098120,1e-08,2517.5,2517.4,18.83475242]
[1751774100720,1e-08,2517.5,2517.4,18.83375242]
[1751774102297,1e-08,2517.5,2517.4,14.08375242]
[1751774104023,1e-08,2517.5,2517.4,4.17175242]
[1751774104217,1e-08,2517.5,2517.4,14.08575242]
[1751774108319,1e-08,2517.5,2517.4,4.17175242]
[1751774108495,1e-08,2517.5,2517.4,14.08475242]
[1751774108700,1e-08,2517.5,2517.4,16.76274275]
[1751774110630,1e-08,2517.5,2517.4,6.84974275]
[1751774110802,1e-08,2517.5,2517.4,16.76274275]
[1751774114538,0.13100001,2517.5,2517.4,6.84974275]
[1751774114836,1e-08,2517.5,2517.4,16.76174275]
[1751774118739,1e-08,2517.5,2517.4,6.84974275]
[1751774118943,1e-08,2517.5,2517.4,14.08275242]
[1751774127235,1e-08,2517.5,2517.4,14.90355242]
[1751774131476,1e-08,2517.5,2517.4,15.45355242]
[1751774131968,1e-08,2517.5,2517.4,20.20355242]
[1751774132759,1e-08,2517.5,2517.4,30.20355242]
[1751774133058,1e-08,2517.5,2517.4,34.0524449]
[1751774137837,1e-08,2517.5,2517.4,39.56291971]
[1751774147202,1e-08,2517.5,2517.4,29.65191971]
[1751774147355,1e-08,2517.5,2517.4,34.0484449]
[1751774152384,1e-08,2517.5,2517.4,39.55891971]
[1751774158885,1e-08,2517.5,2517.4,29.65191971]
[1751774159184,1e-08,2517.5,2517.4,39.55491971]
[1751774160082,1e-08,2517.5,2517.4,29.65191971]
[1751774160290,1e-08,2517.5,2517.4,39.55491971]
[1751774161982,1e-08,2517.5,2517.4,6.10175242]
[1751774162188,1e-08,2517.5,2517.4,14.07475242]
[1751774206363,1e-08,2517.5,2517.4,14.07475242]
[1751774206656,1e-08,2517.5,2517.4,15.39155242]
[1751774208859,1e-08,2517.5,2517.4,20.14155242]
[1751774226706,1e-08,2517.5,2517.4,10.23855242]
[1751774226892,1e-08,2517.5,2517.4,20.14155242]
[1751774227192,1e-08,2517.5,2517.4,23.50127023]
[1751774230295,1e-08,2517.5,2517.4,18.82475242]
[1751774232506,1e-08,2517.5,2517.4,14.07475242]
[1751774236673,5.51047481,2518.2,2517.9,3.97141726]
[1751774236996,5.51047481,2518.2,2517.9,11.94441726]
[1751774237198,5.51047481,2518.2,2517.9,12.14281726]
[1751774237499,0.57088748,2518.1,2518.0,3.97140587]
[1751774240717,0.57088748,2518.1,2517.9,0.1984]
[1751774241025,0.57088748,2518.1,2517.9,4.1698771]
[1751774245203,0.57088748,2518.1,2517.9,0.1984]
[1751774247925,0.57088748,2518.1,2517.9,4.16996258]
[1751774248127,0.60813623,2518.0,2517.9,4.16996258]
[1751774249432,0.60813623,2518.0,2517.9,0.1984]
[1751774250932,0.60813623,2518.0,2517.9,4.1699636]
[1751774252126,0.57088748,2518.1,2517.9,4.1699636]
[1751774255018,0.57088748,2518.1,2517.9,0.1984]
[1751774255531,0.57088748,2518.1,2517.9,0.1994]
[1751774259201,5.51047481,2518.0,2517.9,0.001]
[1751774269359,9.48188068,2518.0,2517.9,0.001]
[1751774269656,7.73000528,2518.0,2517.9,0.001]
[1751774274662,15.70300528,2518.0,2517.9,0.001]
[1751774279466,13.48347481,2518.0,2517.9,0.001]
[1751774280254,5.51047481,2518.0,2517.9,0.001]
[1751774288175,9.48188068,2518.0,2517.9,0.001]
[1751774288348,9.68028068,2518.0,2517.9,0.001]
[1751774289345,5.70887481,2518.0,2517.9,0.001]
[1751774289546,7.92839847,2518.0,2517.9,0.001]
[1751774291582,2.41792366,2518.0,2517.9,0.001]
[1751774291744,0.1984,2518.0,2517.9,0.001]
[1751774291944,8.1704,2518.1,2517.9,0.001]
[1751774297781,13.68087481,2518.1,2517.9,0.001]
[1751774301500,5.70887481,2518.1,2517.9,0.001]
[1751774325830,5.70887481,2518.1,2517.9,3.97253491]
[1751774327830,0.1984,2518.1,2517.9,3.97253491]
[1751774328049,0.1984,2518.1,2518.0,0.7872]
[1751774328530,0.1984,2518.1,2517.9,0.001]
[1751774332233,0.1984,2518.1,2517.9,3.97254296]
[1751774344477,0.1984,2518.1,2517.9,0.001]
[1751774353481,5.70887481,2518.1,2517.9,0.001]
[1751774356487,0.1984,2518.1,2517.9,0.001]
[1751774357869,0.1984,2518.1,2517.9,3.97254225]
[1751774363704,0.1484,2518.1,2517.9,3.97254225]
[1751774367907,0.1484,2518.1,2517.9,0.001]
[1751774368407,0.1484,2518.1,2517.9,3.97256319]
[1751774373515,0.1484,2518.1,2517.9,3.97249739]
[1751774375128,0.1484,2518.1,2518.0,3.97140587]
[1751774375506,0.1484,2518.1,2517.9,3.97248036]
[1751774377437,0.1484,2518.1,2517.9,0.001]
[1751774385247,0.1484,2518.1,2517.9,3.97254533]
[1751774385951,0.1504,2518.1,2517.9,3.97254533]
[1751774388147,0.1504,2518.1,2517.9,0.001]
[1751774388516,0.1504,2518.1,2517.9,3.9725605]
[1751774402566,0.1504,2518.1,2517.9,3.97253356]
[1751774402745,0.1504,2518.1,2517.9,0.001]
[1751774403466,0.1504,2518.1,2517.9,3.972547]
[1751774405673,5.66087481,2518.1,2517.9,0.001]
[1751774405973,8.42115864,2518.1,2517.9,0.001]
[1751774408343,5.66087481,2518.1,2517.9,0.001]
[1751774408957,5.51087481,2518.1,2517.9,0.001]
[1751774409444,5.46087481,2518.1,2517.9,0.001]
[1751774419596,9.43220264,2518.1,2517.9,0.001]
[1751774419764,3.97140587,2518.0,2517.9,0.001]
[1751774421687,11.94040587,2518.0,2517.9,0.001]
[1751774424008,14.29589189,2518.0,2517.9,0.001]
[1751774436340,10.32448602,2518.0,2517.9,0.001]
[1751774436540,8.1674,2518.0,2517.9,0.001]
[1751774436838,12.13880587,2518.0,2517.9,0.001]
[1751774441645,0.1984,2518.0,2517.9,0.7714]
[1751774441846,0.002,2518.1,2518.0,4.74180587]
[1751774444150,0.002,2518.1,2518.0,0.7704]
[1751774444356,0.002,2518.1,2518.0,4.74180587]
[1751774446573,0.002,2518.1,2517.9,4.17093645]
[1751774446574,0.002,2518.1,2517.9,4.17089353]
[1751774446772,5.51047481,2518.0,2517.9,3.97252884]
[1751774447369,13.47847481,2518.0,2517.9,0.001]
[1751774447574,15.04476229,2518.0,2517.9,0.001]
[1751774450575,19.01616816,2518.0,2517.9,0.001]
[1751774451792,21.08753046,2518.0,2517.9,0.001]
[1751774458769,31.08753046,2518.0,2517.9,0.001]
[1751774460403,31.63753046,2518.0,2517.9,0.001]
[1751774470422,13.97219463,2517.5,2517.4,0.001]
[1751774470622,29.52603174,2517.5,2517.4,0.001]
[1751774480723,29.52703174,2517.5,2517.4,0.001]
[1751774489648,10.0,2517.5,2517.4,0.001]
[1751774489967,18.1714,2517.5,2517.4,0.7788]
[1751774490173,18.1724,2517.5,2517.4,0.7788]
[1751774490770,1.929,2517.8,2517.4,0.001]
[1751774490960,8.1744,2517.7,2517.5,3.97209321]
[1751774491156,18.1744,2517.7,2517.6,4.80083686]
[1751774493642,18.1744,2517.7,2517.6,0.8288]
[1751774494172,18.1744,2517.7,2517.6,4.80083686]
[1751774494467,18.1744,2517.7,2517.6,0.8288]
[1751774504455,18.1714,2517.7,2517.6,0.8288]
[1751774514098,18.1714,2517.7,2517.5,0.001]
[1751774527928,10.1984,2517.7,2517.5,0.001]
[1751774528130,7.97,2517.6,2517.5,0.001]
[1751774541456,7.27,2517.6,2517.5,0.001]
[1751774544732,0.1984,2517.7,2517.6,3.97203686]
[1751774544925,0.002,2517.9,2517.7,4.79559078]
[1751774545125,7.97,2517.8,2517.7,0.8238]
[1751774546253,7.97,2517.8,2517.6,3.97196574]
[1751774546454,7.97,2517.7,2517.6,3.97196574]
[1751774553232,7.97,2517.7,2517.6,4.86880117]
[1751774556866,10.002,2517.9,2517.7,3.97187532]
[1751774557170,7.97,2517.8,2517.7,3.97187532]
[1751774557672,0.002,2517.9,2517.7,3.97187532]
[1751774557840,7.97,2517.8,2517.7,3.97187532]
[1751774560044,0.002,2517.9,2517.8,3.97172134]
[1751774560843,0.002,2517.9,2517.8,4.74282134]
[1751774561055,0.002,2517.9,2517.8,5.63413101]
[1751774561876,0.002,2517.9,2517.8,5.67384822]
[1751774562657,1e-08,2517.9,2517.8,6.22384822]
[1751774562991,1e-08,2517.9,2517.8,6.18413101]
[1751774563372,1e-08,2517.9,2517.8,6.22384822]
[1751774563573,1e-08,2517.9,2517.8,6.18413101]
[1751774563774,0.002,2518.1,2518.0,4.74250587]
[1751774563974,0.002,2518.1,2518.0,11.91155703]
[1751774564205,0.002,2518.1,2518.0,11.87184298]
[1751774565788,0.002,2518.1,2518.0,6.35758541]
[1751774567126,0.002,2518.1,2518.0,6.39729946]
[1751774568004,0.002,2518.1,2518.0,13.97257891]
[1751774568316,0.002,2518.1,2518.0,13.93286486]
[1751774569914,0.002,2518.1,2518.0,6.35758541]
[1751774576623,0.002,2518.1,2518.0,6.39729946]
[1751774577332,0.002,2518.1,2518.0,6.35758541]
[1751774577650,0.002,2518.1,2518.0,6.39729946]
[1751774578939,0.002,2518.1,2518.0,6.35758541]
[1751774580162,0.002,2518.1,2518.0,6.39729946]
[1751774580340,0.002,2518.1,2518.0,6.35758541]
[1751774581552,0.002,2518.1,2518.0,6.39729946]
[1751774581844,0.002,2518.1,2518.0,6.35758541]
[1751774582945,0.002,2518.4,2518.3,4.75793277]
[1751774583148,0.002,2518.4,2518.3,6.02795694]
[1751774583350,0.002,2518.4,2518.3,6.22635694]
[1751774588176,0.002,2518.4,2518.3,6.26606626]
[1751774588336,0.002,2518.4,2518.3,6.22635694]
[1751774600001,0.002,2518.4,2518.3,5.43935694]
[1751774600292,0.002,2518.4,2518.3,4.16933277]
[1751774612522,1e-08,2518.4,2518.3,11.00974803]
[1751774613022,1e-08,2518.4,2518.3,5.50083277]
[1751774616936,0.0431287,2518.9,2518.8,3.97014451]
[1751774617218,0.0431287,2518.9,2518.8,12.77705977]
[1751774617426,0.0431287,2518.9,2518.8,15.92209302]
[1751774617731,1e-08,2518.9,2518.8,26.2148671]
[1751774617927,1e-08,2518.9,2518.8,28.27364879]
[1751774622829,1e-08,2518.9,2518.8,33.02364879]
[1751774625331,1e-08,2519.9,2519.8,15.33856893]
[1751774625534,1e-08,2519.9,2519.8,25.62182582]
[1751774627331,1e-08,2519.9,2519.8,4.16696893]
[1751774629522,1e-08,2519.9,2519.8,0.1984]
[1751774631538,1e-08,2519.9,2519.8,4.16696893]
[1751774631739,0.00200001,2519.9,2519.8,4.16696893]
[1751774631909,0.00200001,2519.9,2519.8,0.1984]
[1751774632102,0.00200001,2519.9,2519.8,4.16696893]
[1751774633742,0.00200001,2519.9,2519.8,5.02021608]
[1751774636443,0.00200001,2519.9,2519.8,4.9805304]
[1751774636741,0.00200001,2519.9,2519.8,4.16696893]
[1751774637750,0.00200001,2519.9,2519.8,4.20665461]
[1751774639543,0.00200001,2519.9,2519.8,4.16696893]
[1751774650333,0.00200001,2519.9,2519.8,0.1984]
[1751774650540,0.00200001,2519.9,2519.8,4.16696893]
[1751774651052,0.00200001,2519.9,2519.8,0.1984]
[1751774652454,0.00200001,2519.9,2519.8,4.16696893]
[1751774653374,0.00200001,2519.9,2519.8,0.1984]
[1751774653533,0.00200001,2519.9,2519.8,0.1994]
[1751774656774,0.00200001,2519.9,2519.8,4.16796893]
[1751774663283,0.00200001,2519.9,2519.8,0.1994]
[1751774666288,1.95819777,2519.9,2519.8,0.001]
[1751774667582,5.92660921,2519.9,2519.8,0.001]
[1751774668871,13.91160921,2519.9,2519.8,0.001]
[1751774670371,23.91160921,2519.9,2519.8,0.001]
[1751774671195,17.98800001,2519.9,2519.8,0.001]
[1751774671360,10.00200001,2519.9,2519.8,0.001]
[1751774671564,17.98800001,2519.9,2519.8,0.001]
[1751774676403,17.98800001,2519.9,2519.8,3.96956893]
[1751774676792,17.98800001,2519.9,2519.8,0.001]
[1751774677900,7.98800001,2519.9,2519.8,3.96956893]
[1751774678207,0.00200001,2519.9,2519.8,3.96956893]
[1751774678368,7.98800001,2519.9,2519.8,3.96956893]
[1751774680306,7.98800001,2519.9,2519.8,0.001]
[1751774681075,7.98800001,2519.9,2519.8,3.96956893]
[1751774681276,7.98800001,2519.9,2519.8,0.001]
[1751774681596,7.98700001,2519.9,2519.8,3.96956893]
[1751774682004,7.98700001,2519.9,2519.8,0.001]
[1751774698927,7.98200001,2519.9,2519.8,0.001]
[1751774699126,7.98200001,2519.9,2519.8,3.96956893]
[1751774700702,7.98200001,2519.9,2519.8,0.001]
[1751774721754,7.97700001,2519.9,2519.8,0.001]
[1751774722182,7.97700001,2519.9,2519.8,3.96956893]
[1751774723685,7.97700001,2519.9,2519.8,0.001]
[1751774724590,7.97700001,2519.9,2519.8,3.96956893]
[1751774725397,7.97700001,2519.9,2519.8,0.001]
[1751774727589,7.97700001,2519.9,2519.8,3.96956893]
[1751774729393,0.00200001,2519.9,2519.8,3.96956893]
[1751774729899,7.97500001,2519.9,2519.8,3.96956893]
[1751774732084,0.00200001,2519.9,2519.8,3.96956893]
[1751774732292,7.97600001,2519.9,2519.8,4.90268368]
[1751774732462,7.97600001,2519.9,2519.8,4.862998]
[1751774732990,0.00200001,2519.9,2519.8,4.862998]
[1751774733160,0.00200001,2519.9,2519.8,5.70138368]
[1751774733691,0.00200001,2519.9,2519.8,5.661698]
[1751774734191,0.00200001,2519.9,2519.8,5.70138368]
[1751774734794,0.00200001,2519.9,2519.8,5.661698]
[1751774737262,0.00200001,2519.9,2519.8,5.70138368]
[1751774738061,0.00200001,2519.9,2519.8,5.661698]
[1751774741187,0.00200001,2519.9,2519.8,5.70138368]
[1751774742372,0.00200001,2519.9,2519.8,6.211698]
[1751774744103,0.00200001,2519.9,2519.8,10.961698]
[1751774750002,0.00200001,2519.9,2519.8,3.96956893]
[1751774752711,0.00200001,2519.9,2519.8,4.00925461]
[1751774752907,0.00200001,2519.9,2519.8,3.96956893]
[1751774753274,0.00200001,2519.9,2519.8,4.00925461]
[1751774757729,0.00200001,2519.9,2519.8,4.80905461]
[1751774758012,0.00200001,2519.9,2519.8,5.64714657]
[1751774758514,0.00200001,2519.9,2519.8,6.19714657]
[1751774759016,0.00200001,2519.9,2519.8,10.94714657]
[1751774760078,0.00200001,2519.9,2519.8,11.14554657]
[1751774764328,1e-08,2519.9,2519.8,11.14554657]
[1751774765126,1e-08,2519.9,2519.8,19.81854657]
[1751774769639,1e-08,2520.1,2520.0,1.3498]
[1751774769836,1e-08,2520.1,2520.0,15.22205396]
[1751774770037,1e-08,2520.1,2520.0,20.92315814]
[1751774770541,1e-08,2520.1,2520.0,21.12733435]
[1751774771428,1e-08,2520.1,2520.0,20.92315814]
[1751774771624,1e-08,2520.1,2520.0,24.69926948]
[1751774773817,1e-08,2520.1,2520.0,29.44926948]
[1751774775112,1e-08,2520.1,2520.0,23.9465653]
[1751774777342,1e-08,2520.1,2520.0,39.44926948]
[1751774782946,1e-08,2520.4,2520.3,5.32728161]
[1751774783117,1e-08,2520.4,2520.3,14.97767115]
[1751774783317,1e-08,2520.4,2520.3,29.72767115]
[1751774787845,1e-08,2520.4,2520.3,30.01951813]
[1751774790560,1e-08,2520.4,2520.3,22.04651813]
[1751774790870,1e-08,2520.4,2520.3,31.94951813]
[1751774796638,1e-08,2520.4,2520.3,31.14001813]
[1751774802873,1e-08,2520.4,2520.3,18.36617115]
[1751774804174,1e-08,2520.4,2520.3,10.39517115]
[1751774804345,1e-08,2520.4,2520.3,18.36617115]
[1751774804540,1e-08,2520.4,2520.3,8.91538161]
[1751774805359,1e-08,2520.4,2520.3,8.91638161]
[1751774806153,0.00200001,2520.4,2520.3,4.16638161]
[1751774806973,0.00200001,2520.4,2520.3,0.1986]
[1751774807154,0.75863571,2520.4,2520.3,0.1986]
[1751774814378,8.73163571,2520.4,2520.3,0.1986]
[1751774818009,8.73163571,2520.4,2520.3,4.16638161]
[1751774818216,8.73163571,2520.4,2520.3,0.1986]
[1751774819764,8.73163571,2520.4,2520.3,0.001]
[1751774824494,0.75863571,2520.4,2520.3,3.96878161]
[1751774824700,8.72963571,2520.4,2520.3,3.96878161]
[1751774825099,8.72963571,2520.4,2520.3,0.001]
[1751774825802,14.2315117,2520.4,2520.3,0.001]
[1751774836378,14.230123,2520.4,2520.3,0.001]
[1751774838513,18.19774718,2520.4,2520.3,0.001]
[1751774840583,14.230123,2520.4,2520.3,0.001]
[1751774841398,14.228123,2520.4,2520.3,0.001]
[1751774841584,6.259123,2520.4,2520.3,0.001]
[1751774841787,8.72624701,2520.4,2520.3,0.001]
[1751774848615,0.75724701,2520.4,2520.3,0.001]
[1751774848821,8.72724701,2520.4,2520.3,0.001]
[1751774849719,0.00061131,2520.4,2520.3,0.001]
[1751774849893,7.97061131,2520.4,2520.3,3.96878161]
[1751774852013,0.00061131,2520.4,2520.3,3.96878161]
[1751774852219,7.97061131,2520.4,2520.3,3.96878161]
[1751774852407,7.97061131,2520.4,2520.3,4.8579325]
[1751774853824,7.97061131,2520.4,2520.3,5.0555325]
[1751774854529,0.00061131,2520.4,2520.3,5.0555325]
[1751774854735,7.96961131,2520.4,2520.3,5.0555325]
[1751774856930,0.00061131,2520.4,2520.3,5.0555325]
[1751774857229,0.00061131,2520.4,2520.3,5.8449325]
[1751774865807,0.00061131,2520.4,2520.3,11.1449325]
[1751774866408,0.00061131,2520.4,2520.3,11.8449325]
[1751774881852,0.00061131,2520.4,2520.3,11.8449325]
[1751774884468,0.00061131,2520.4,2520.3,19.8139325]
[1751774887266,0.00061131,2520.4,2520.3,19.6859325]
[1751774890557,0.00061131,2520.4,2520.3,29.6859325]
[1751774894843,0.00061131,2520.4,2520.3,29.6869325]
[1751774920495,0.00061131,2520.4,2520.3,30.8245325]
[1751774923709,0.00061131,2520.4,2520.3,20.9285325]
[1751774923877,0.00061131,2520.4,2520.3,30.8245325]
[1751774933615,0.00061131,2520.4,2520.3,30.8235325]
[1751774934716,0.00061131,2520.4,2520.3,30.2735325]
[1751774935915,0.00061131,2520.4,2520.3,20.3785325]
[1751774936415,0.00061131,2520.4,2520.3,15.6285325]
[1751774937885,0.00061131,2520.4,2520.3,23.5945325]
[1751774938219,0.00061131,2520.4,2520.3,14.73938161]
[1751774939581,0.00061131,2520.4,2520.3,4.73938161]
[1751774954205,0.00061131,2520.4,2520.3,4.63698161]
[1751774954405,5.50015454,2520.4,2520.3,0.701]
[1751774954604,6.44690852,2520.4,2520.3,0.001]
[1751774955838,0.94736529,2520.4,2520.3,0.001]
[1751774956403,8.91636529,2520.4,2520.3,0.001]
[1751774960652,12.88398947,2520.4,2520.3,0.001]
[1751774960951,8.91636529,2520.4,2520.3,0.001]
[1751774967661,12.88398947,2520.4,2520.3,0.001]
[1751774969968,8.91636529,2520.4,2520.3,0.001]
[1751774971765,12.88398947,2520.4,2520.3,0.001]
[1751774972267,8.91636529,2520.4,2520.3,0.001]
[1751774973335,12.88398947,2520.4,2520.3,0.001]
[1751774973536,8.91636529,2520.4,2520.3,0.001]
[1751774973842,12.88398947,2520.4,2520.3,0.001]
[1751774976973,8.91636529,2520.4,2520.3,0.001]
[1751774977782,14.41927917,2520.4,2520.3,0.001]
[1751774978184,18.38690335,2520.4,2520.3,0.001]
[1751774978985,28.38690335,2520.4,2520.3,0.001]
[1751774979169,28.58450335,2520.4,2520.3,0.001]
[1751774980884,34.08741723,2520.4,2520.0,0.001]
[1751774981049,19.47101038,2520.1,2520.0,0.001]
[1751774981386,32.94292426,2520.1,2520.0,0.001]
[1751774981754,29.50743999,2520.1,2520.0,0.001]
[1751774982380,29.71444519,2520.1,2520.0,0.001]
[1751774982551,29.50743999,2520.1,2520.0,0.001]
[1751774982752,30.45419397,2520.1,2520.0,0.001]
[1751774988994,22.48519397,2520.1,2520.0,0.001]
[1751774989319,22.88785048,2520.1,2520.0,0.001]
[1751774991802,30.45819397,2520.1,2520.0,0.001]
[1751775001328,30.45619397,2520.1,2520.0,0.001]
[1751775007122,0.94675398,2520.1,2520.0,0.001]
[1751775007316,0.1984,2520.1,2520.0,0.001]
[1751775007515,7.971,2520.1,2520.0,0.001]
[1751775007905,10.0,2520.2,2520.0,0.001]
[1751775008105,4.16551142,2520.3,2520.0,0.001]
[1751775008106,7.972,2520.1,2520.0,0.001]
[1751775019044,10.0,2520.2,2520.0,0.001]
[1751775019218,7.97,2520.1,2520.0,0.001]
[1751775024252,0.0806,2520.0,2519.8,4.99378917]
[1751775024456,7.97,2519.9,2519.8,4.99378917]
[1751775027260,7.97,2519.9,2519.8,1.0253]
[1751775027742,7.97,2519.9,2519.8,4.99386893]
[1751775029865,7.97,2519.9,2519.8,1.0253]
[1751775035888,7.97,2519.9,2519.8,4.99386893]
[1751775036078,7.97,2519.9,2519.8,1.0253]
[1751775042717,7.97,2519.9,2519.8,0.1994]
[1751775045594,7.97,2519.9,2519.8,4.16796893]
[1751775046001,7.97,2519.9,2519.8,0.1994]
[1751775049402,9.72223463,2519.9,2519.8,0.1994]
[1751775051004,9.72223463,2519.9,2519.8,0.001]
[1751775057207,13.69064607,2519.9,2519.8,0.001]
[1751775057412,13.88904607,2519.9,2519.8,0.001]
[1751775058000,15.42415798,2519.9,2519.8,0.001]
[1751775058592,0.0826,2520.0,2519.9,3.96841144]
[1751775058800,0.0826,2520.0,2519.9,4.76921144]
[1751775061115,0.0826,2520.0,2519.9,5.31921144]
[1751775067612,0.0826,2520.0,2519.9,4.76921144]
[1751775068610,0.0826,2520.0,2519.9,4.96761144]
[1751775076514,0.0826,2520.0,2519.9,4.96861144]
[1751775077515,0.0826,2520.0,2519.9,4.16781144]
[1751775117545,0.0826,2520.0,2519.9,4.98881144]
[1751775117846,0.0826,2520.0,2519.9,5.88464677]
[1751775122534,0.0826,2520.0,2519.9,5.92433088]
[1751775122739,0.0826,2520.0,2519.9,5.88464677]
[1751775128763,0.0826,2520.0,2519.9,5.92433088]
[1751775131059,0.0826,2520.0,2519.9,5.88464677]
[1751775132525,0.0826,2520.0,2519.9,5.92433088]
[1751775133839,0.0826,2520.0,2519.9,5.06364677]
[1751775134052,0.0826,2520.0,2519.9,4.16781144]
[1751775149682,0.0826,2520.0,2519.9,0.1994]
[1751775150380,0.0826,2520.0,2519.9,0.001]
[1751775151303,0.0826,2520.0,2519.9,3.96941144]
[1751775162568,0.0826,2520.0,2519.9,0.001]
[1751775162768,0.64117426,2520.0,2519.9,3.96941144]
[1751775171174,0.0826,2520.0,2519.9,3.96941144]
[1751775178774,0.0826,2520.0,2519.9,4.74651144]
[1751775179004,0.0826,2520.0,2519.9,4.94491144]
[1751775184604,0.0826,2520.0,2519.9,4.98459555]
[1751775185786,0.0826,2520.0,2519.9,11.03773815]
[1751775185987,0.0826,2520.0,2519.9,12.49878303]
[1751775187105,0.0826,2520.0,2519.9,6.99564043]
[1751775199728,0.0826,2520.0,2519.9,7.03532454]
[1751775200909,0.0826,2520.0,2519.9,6.99564043]
[1751775201111,0.0826,2520.0,2519.9,7.03532454]
[1751775201592,0.0826,2520.0,2519.9,6.99564043]
[1751775203521,0.0826,2520.0,2519.9,7.69564043]
[1751775209732,0.0826,2520.0,2519.9,7.73532454]
[1751775211633,0.0826,2520.0,2519.9,7.69564043]
[1751775216246,0.0826,2520.0,2519.9,6.36854043]
[1751775216540,0.0826,2520.0,2519.9,12.83381144]
[1751775218335,0.0826,2520.0,2519.9,4.86781144]
[1751775223457,0.0826,2520.0,2519.9,4.90749555]
[1751775237466,0.0826,2520.0,2519.9,4.86781144]
[1751775330819,0.0826,2520.0,2519.9,0.8994]
[1751775331113,0.64117426,2520.0,2519.9,4.66941144]
[1751775341490,0.64117426,2520.0,2519.9,0.701]
[1751775341997,0.64117426,2520.0,2519.9,0.001]
[1751775342805,4.60942822,2520.0,2519.9,0.001]
[1751775346124,0.64117426,2520.0,2519.9,0.001]
[1751775346328,6.14431686,2520.0,2519.9,0.001]
[1751775349730,10.11257082,2520.0,2519.9,0.001]
[1751775357759,6.14431686,2520.0,2519.9,0.001]
[1751775375487,10.11257082,2520.0,2519.9,0.001]
[1751775375977,6.14431686,2520.0,2519.9,0.001]
[1751775386695,10.11257082,2520.0,2519.9,0.001]
[1751775391306,15.61571342,2520.0,2519.9,0.001]
[1751775391508,20.11257082,2520.0,2519.9,0.001]
[1751775403501,28.07557082,2520.0,2519.9,0.001]
[1751775418949,20.11257082,2520.0,2519.9,0.001]